[Event "FIDE Candidates 2024"]
[Site "Toronto"]
[Date "2024.04.18"]
[Round "12.3"]
[White "Abasov, Nijat"]
[Black "Gukesh D"]
[Result "0-1"]
[ECO "E32"]
[WhiteElo "2632"]
[BlackElo "2743"]
[Annotator "TA"]
[PlyCount "114"]
[EventDate "2024.04.02"]
[EventType "tourn"]
[EventCountry "CAN"]
[SourceTitle "playchess.com"]
[Source "ChessBase"]
[SourceQuality "1"]
[TimeControl "40/7200:1800+30"]

{[%evp 9,114,26,30,19,29,41,28,22,24,30,32,27,53,25,28,38,18,24,14,16,24,0,7,0,0,0,0,0,0,0,0,0,14,12,16,0,0,0,0,0,0,0,0,-47,-52,-39,-53,-53,-38,-49,-33,-95,-50,-64,-21,-19,-28,-34,-35,-29,-28,-50,-46,-54,-47,-82,-61,-61,-62,-62,-63,-150,-152,-150,-145,-225,-241,-235,-236,-243,-242,-221,-184,-226,-215,-356,-322,-430,-429,-427,-426,-410,0,-397,-395,-393,-391,-1280,-612,-771,-758,-790,-701,-694,-687,-645,-634]} 1. d4 {[%emt 0:00:02]} Nf6 {[%emt 0:00:07]} 2. c4 {[%emt 0:00:03]} e6 {[%emt 0:00:08]} 3. Nc3 {[%emt 0:00:03]} Bb4 {[%emt 0:00:08]} 4. Qc2 {[%emt 0:00:03]} h6 {[%emt 0:00:06]} 5. Nf3 {[%emt 0:02:57]} c5 {[%emt 0:00:09]} 6. dxc5 {[%emt 0:08:46]} Na6 {[%emt 0:00:07][%cal Bb8a6,Ba6c5,Bc5e4,Be4c3][%mdl 32]} 7. g3 {[%emt 0:02:21]} Nxc5 {[%emt 0:00:08]} 8. Bg2 {[%emt 0:05:08] White has an edge.} Nce4 {[%emt 0:00:09]} 9. O-O {[%emt 0:00:05]} Nxc3 {[%emt 0:00:03]} 10. bxc3 {[%emt 0:00:06]} Bc5 {[%emt 0:00:04]} 11. e4 {[%emt 0:00:54]} Nh7 {[%emt 0:00:05]} 12. e5 {[%emt 0:09:28]} Rb8 {[%emt 0:00:08]} 13. Nd2 {[%emt 0:02:17]} b6 {[%emt 0:00:10]} 14. Ne4 {[%emt 0:00:05]} Bb7 {[%emt 0:00:55]} 15. h4 {[%emt 0:16:10]} Qc7 {[%emt 0:15:20]} 16. Rd1 {[%emt 0:01:31]} Bxe4 {[%emt 0:30:12]} 17. Qxe4 {[%emt 0:03:38]} O-O {[%emt 0:00:32]} 18. Bf4 {[%emt 0:01:37]} Rfd8 {[%emt 0:11:24]} 19. Rd2 {[%emt 0:05:26]} Nf8 {[%emt 0:00:50]} 20. h5 {[%emt 0:09:17]} b5 {[%emt 0:00:32] Black is weak on the light squares} 21. cxb5 {[%emt 0:03:35]} Rxb5 {[%emt 0:00:22]} 22. Bf1 {[%emt 0:00:58]} Rb6 {[%emt 0:07:03]} 23. Rad1 {[%emt 0:00:31]} Rdb8 {[%emt 0:00:49]} 24. a4 {[%emt 0:16:03]} Rb3 {[%emt 0:00:38]} 25. Rd3 {[%emt 0:05:23]} Ra3 {[%emt 0:15:08]} 26. Rf3 {[%emt 0:04:04]} (26. Bc1 $1 $11 {deserves consideration.} Ra1 27. Be3 Rxd1 28. Rxd1) 26... Qc6 $1 $15 {[%emt 0:02:15]} 27. Qxc6 {[%emt 0:00:06]} dxc6 {[%emt 0:00:03]} 28. Rfd3 {[%emt 0:00:53]} Rxa4 {[%emt 0:04:14]} 29. Bg2 {[%emt 0:00:54]} Ra2 {[%emt 0:07:04]} 30. R1d2 {[%emt 0:02:25]} ({Better is} 30. R3d2 $15 Rxd2 31. Bxd2) 30... Rxd2 {[%emt 0:01:20]} 31. Rxd2 {[%emt 0:00:18]} Rc8 {[%emt 0:01:35]} 32. Be4 {[%emt 0:00:50]} a5 {[%emt 0:01:18]} 33. Bc2 {[%emt 0:06:50]} g5 {[%emt 0:07:08]} 34. hxg6 {[%emt 0:00:05]} Nxg6 {[%emt 0:00:06]} 35. Kg2 {[%emt 0:02:37]} Kg7 {[%emt 0:01:58]} 36. Ba4 {[%emt 0:01:24]} Ne7 {[%emt 0:00:07]} 37. c4 {[%emt 0:00:06]} Rb8 {[%emt 0:00:40]} 38. Ra2 $1 {[%emt 0:00:27]} Bb4 {[%emt 0:00:23]} 39. Kf3 {[%emt 0:00:34]} Rd8 {[%emt 0:02:19]} 40. Be3 {[%emt 0:00:00] Wards off Rd4. White is on the road to losing.} (40. Ke4 $15) 40... Rd3 $1 $17 {[%emt 0:00:00]} 41. Ke2 {[%emt 0:20:32]} Rc3 {[%emt 0:14:13]} 42. c5 {[%emt 0:00:05]} (42. Bb6 $17 {might work better.}) 42... Nd5 $1 $19 {[%emt 0:03:02][%cal Oc3e3]} ({But not} 42... Bxc5 43. Bd2 Rc4 44. Bxa5 $17) 43. Rc2 {[%emt 0:00:07] [#]} Rxc2+ $1 {[%emt 0:01:42]} 44. Bxc2 {[%emt 0:00:05][%mdl 4096] Endgame. [#] KBB-KBN} a4 $1 {[%emt 0:02:15][%mdl 512] Strongly threatening ...a3.} 45. Kd3 {[%emt 0:00:15]} (45. Bd4 a3) 45... a3 {[%emt 0:01:20] ...a2 would now be deadly.} 46. Bb3 {[%emt 0:00:16]} Kg6 {[%emt 0:03:01]} 47. Bd4 {[%emt 0:01:36]} (47. Kc4 $142) 47... Kg5 {[%emt 0:03:59]} 48. Kc4 {[%emt 0:01:27]} Be1 {[%emt 0:01:10]} 49. Kd3 {[%emt 0:00:43]} Kg4 {[%emt 0:01:49] aiming for ...Kf3.} 50. Bd1+ {[%emt 0:00:11]} Kg5 {[%emt 0:00:57]} 51. Bb3 {[%emt 0:00:09]} Kf5 {[%emt 0:00:49]} 52. Kc4 {[%emt 0:03:15]} Ke4 {[%emt 0:01:52]} 53. Bd1 $2 {[%emt 0:00:05]} (53. g4) 53... a2 {[%emt 0:00:55]} (53... Bxf2 $142 54. Bc2+ Kf3 55. Bd1+ Kxg3) 54. f3+ {[%emt 0:00:04]} Kf5 {[%emt 0:00:01]} 55. Bc2+ {[%emt 0:00:09]} Kg5 {[%emt 0:00:04]} 56. Bb3 {[%emt 0:00:05]} Bxg3 {[%emt 0:00:10] Hoping for ...h5.} 57. Bxa2 {[%emt 0:00:04]} h5 {[%emt 0:00:54] Weighted Error Value: White=0.27 (precise) /Black=0.18 (very precise) .  Mistake:       	White=6     	Black=1      Inaccurate:     	White=2     	Black=2      OK:         	White=16    	Black=26     Best:        	White=3     	Black=1      Strong:       	White=1     	Black=4      Brilliant:      	---       	Black=1} 0-1

[Event "FIDE Candidates 2024"]
[Site "Toronto"]
[Date "2024.04.21"]
[Round "14.4"]
[White "Abasov, Nijat"]
[Black "Praggnanandhaa R"]
[Result "0-1"]
[ECO "E69"]
[WhiteElo "2632"]
[BlackElo "2747"]
[Annotator "TA"]
[PlyCount "104"]
[EventDate "2024.04.02"]
[EventType "tourn"]
[EventCountry "CAN"]
[SourceTitle "playchess.com"]
[Source "ChessBase"]
[SourceQuality "1"]
[TimeControl "40/7200:1800+30"]

{[%evp 42,104,37,35,34,34,40,0,24,22,22,7,21,0,15,4,35,0,0,0,3,0,0,-31,-31,-89,-93,-99,-80,-72,-85,-118,-118,-122,-125,-124,-91,-129,-127,-127,-103,-156,-110,-131,-78,-141,-147,-137,-123,-253,-248,-263,-259,-314,-308,-311,-322,-318,-310,-398,-391,-396,-385,-29975,-231]} 1. d4 {[%emt 0:00:02]} Nf6 {[%emt 0:00:29]} 2. c4 {[%emt 0:00:06]} g6 {[%emt 0:00:12]} 3. Nc3 {[%emt 0:00:41]} Bg7 {[%emt 0:00:03]} 4. g3 {[%emt 0:00:10]} O-O {[%emt 0:00:20]} 5. Bg2 {[%emt 0:00:04]} d6 {[%emt 0:00:03]} 6. Nf3 {[%emt 0:00:11]} Nbd7 {[%emt 0:00:08]} 7. O-O {[%emt 0:00:19]} e5 {[%emt 0:00:11]} 8. e4 {[%emt 0:00:40]} Re8 {[%emt 0:00:23]} 9. Re1 {[%emt 0:00:14]} exd4 {[%emt 0:00:30]} 10. Nxd4 {[%emt 0:00:09]} c6 {[%emt 0:00:08]} 11. h3 {[%emt 0:08:23]} Qb6 {[%emt 0:00:19]} 12. Nb3 {[%emt 0:03:16]} Ne5 {[%emt 0:06:27]} 13. Be3 {[%emt 0:12:34] E69: King's Indian: Fianchetto: 6...Nbd7 7 0-0 e5 8 e4 c6 9 h3.} c5 {[%emt 0:08:59]} 14. Bf1 {[%emt 0:05:02]} Be6 {[%emt 0:02:06]} 15. Nd5 {[%emt 0:15:13]} Bxd5 {[%emt 0:05:23]} 16. exd5 {[%emt 0:00:06]} Ne4 {[%emt 0:00:41]} 17. Kg2 {[%emt 0:00:28]} a5 {[%emt 0:06:28]} 18. Nd2 $146 {[%emt 0:06:38]} ({Predecessor:} 18. Rb1 a4 19. Nd2 Nd7 20. Nxe4 Rxe4 21. Qc2 Ree8 22. h4 h5 23. Be2 Qc7 24. Bf4 {0-1 Lin,W (2408)-Li,S (2457) Belt and Road Hunan op-A 2019 (8)}) 18... Nxd2 {[%emt 0:05:35]} 19. Qxd2 {[%emt 0:00:10]} Nd7 {[%emt 0:02:56]} 20. Rab1 {[%emt 0:01:47]} a4 {[%emt 0:02:41]} 21. Qc2 {[%emt 0:06:52]} Qa6 {[%emt 0:02:13]} 22. Bd2 {[%emt 0:01:05]} Bd4 {[%emt 0:02:16]} 23. Bc3 {[%emt 0:10:50]} Bxc3 {[%emt 0:06:06]} 24. bxc3 {[%emt 0:00:15]} b6 {[%emt 0:01:06]} 25. a3 {[%emt 0:02:40]} Kg7 {[%emt 0:01:11]} 26. Bd3 {[%emt 0:03:56]} Qc8 {[%emt 0:07:09]} 27. f4 {[%emt 0:01:28]} Qc7 {[%emt 0:03:41]} 28. Qd2 {[%emt 0:02:03]} Nf6 {[%emt 0:00:24]} 29. Bc2 {[%emt 0:04:24]} (29. g4 {keeps more tension.} Qd7 30. f5 Qd8 31. g5) 29... Rxe1 {[%emt 0:06:30]} 30. Rxe1 {[%emt 0:00:05]} Qd7 {[%emt 0:00:03]} 31. Rb1 {[%emt 0:04:17]} Rb8 {[%emt 0:03:13]} 32. Qd1 {[%emt 0:04:03]} Qe7 {[%emt 0:03:02]} 33. Qe1 {[%emt 0:00:10]} ({White should play} 33. Qd3 $15) 33... Qxe1 $17 {[%emt 0:02:36]} 34. Rxe1 {[%emt 0:00:05] [#]} b5 $1 {[%emt 0:00:02]} 35. cxb5 {[%emt 0:07:24]} (35. Rb1 $2 Re8 36. Kf3 bxc4 $19) 35... Rxb5 {[%emt 0:00:15]} 36. Bxa4 {[%emt 0:03:29]} Ra5 {[%emt 0:07:36]} 37. Bc6 {[%emt 0:01:08]} Rxa3 {[%emt 0:00:07]} 38. Re3 {[%emt 0:00:04]} Ra2+ {[%emt 0:03:15]} 39. Kf3 {[%emt 0:01:59]} Rh2 {[%emt 0:02:30]} 40. Re7 {[%emt 0:00:00]} Kf8 {[%emt 0:00:00]} 41. Ra7 {[%emt 0:02:26]} (41. Re1 $142) 41... Rc2 {[%emt 0:16:46]} (41... Nh5 $142 42. Bd7 f5) 42. Ra3 {[%emt 0:00:43] [#]} h6 {[%emt 0:00:48]} (42... Rc1 $142 $1 43. Bb5 Nxd5) 43. Ba4 {[%emt 0:08:53]} (43. g4 $142) 43... Rc1 $17 {[%emt 0:05:11]} 44. Bc6 {[%emt 0:00:06]} Kg7 {[%emt 0:00:32]} 45. Rb3 {[%emt 0:04:35]} (45. Bb5 $17) 45... c4 $19 {[%emt 0:10:33]} 46. Ra3 {[%emt 0:02:05]} Rd1 {[%emt 0:01:11]} 47. g4 {[%emt 0:03:42]} Rd3+ {[%emt 0:02:30]} ({Weaker is} 47... Nxd5 48. Ke2 Rd3 (48... Nxf4+ $2 49. Kxd1 Nxh3 50. Ke2 $18) 49. Bxd5 Rxd5 50. Ra4 $17) 48. Kg2 {[%emt 0:00:04]} Nxd5 {[%emt 0:01:26]} 49. Bxd5 {[%emt 0:00:07]} Rxd5 {[%emt 0:00:04]} 50. h4 {[%emt 0:03:12]} Rd2+ {[%emt 0:00:52]} 51. Kf3 {[%emt 0:00:13]} Rd3+ {[%emt 0:04:43]} 52. Ke4 $2 {[%emt 0:00:29]} (52. Kf2 $19) 52... Rh3 $2 {[%emt 0:02:27]} (52... f5+ {mates} 53. gxf5 Kf6 54. Ra5 gxf5+ (54... Rxc3 55. fxg6 Kxg6 56. Rd5 $11) 55. Rxf5+ Ke6 56. h5 d5+ (56... Rxc3 $2 57. Ra5 $19) 57. Rxd5 Rxd5 58. f5+ Kd6 (58... Rxf5 {is a self mate.} 59. Kd4 Rf4+ 60. Kc5 Rg4 61. Kc6 Rg5 62. Kc7 Rc5+ 63. Kb7 Kd7 64. Kb6 Rd5 65. Kb7 Rd6 66. Kb8 Kc6 67. Ka7 Rd8 68. Ka6 Ra8#) 59. Kf4 Rd3 60. Ke4 Rxc3 61. Kd4 Rc1 62. f6 Ke6 63. Kc5 Kxf6 64. Kb4 c3 65. Kc4 Ke5 66. Kd3 Kd5 67. Ke2 Ke4 68. Kf2 c2 69. Kg3 Rg1+ 70. Kh3 c1=Q (70... c1=B 71. Kh2 Be3 72. Kh3 Bf4 73. Kh4 Kf3 74. Kh3 Rh1#) 71. Kh2 Rh1+ 72. Kg3 Qg1#) 0-1